[Event "Titled Tuesday Blitz August 02 Early 2022"]
[White "Gurel, Ediz"]
[Black "Kucuksari, Kaan"]
[WhiteFideId "44507356"]
[BlackFideId "6380166"]
[WhiteElo "1894"]
[BlackElo "2305"]
[Result "1-0"]
[Round "02"]
[TimeControl "180+1"]
[Date "2022.08.02"]
[WhiteClock "0:00:04"]
[BlackClock "0:00:02"]

1. e4 {[%clk 0:03:00]}  c5 {[%clk 0:02:54]} 2. Nf3 {[%clk 0:03:01]}  d6 {[%clk 0:02:53]} 3. d4 {[%clk 0:03:01]}  cxd4 {[%clk 0:02:54]} 4. Nxd4 {[%clk 0:03:02]}  Nf6 {[%clk 0:02:54]} 5. Nc3 {[%clk 0:03:03]}  Nc6 {[%clk 0:02:54]} 6. Bg5 {[%clk 0:03:01]}  e6 {[%clk 0:02:53]} 7. Qd2 {[%clk 0:03:01]}  a6 {[%clk 0:02:52]} 8. O-O-O {[%clk 0:03:01]}  Bd7 {[%clk 0:02:52]} 9. f4 {[%clk 0:03:01]}  Be7 {[%clk 0:02:51]} 10. Nf3 {[%clk 0:02:46]}  b5 {[%clk 0:02:49]} 11. e5 {[%clk 0:02:40]}  b4 {[%clk 0:02:45]} 12. exf6 {[%clk 0:02:01]}  bxc3 {[%clk 0:02:45]} 13. Qxc3 {[%clk 0:02:02]}  gxf6 {[%clk 0:02:45]} 14. Bh6 {[%clk 0:02:01]}  d5 {[%clk 0:02:43]} 15. Bd3 {[%clk 0:01:59]}  Qb6 {[%clk 0:02:32]} 16. a3 {[%clk 0:01:56]}  Rc8 {[%clk 0:02:27]} 17. Qe1 {[%clk 0:01:46]}  Rb8 {[%clk 0:02:17]} 18. Qc3 {[%clk 0:01:29]}  d4 {[%clk 0:02:18]} 19. Qb3 {[%clk 0:01:30]}  Qa5 {[%clk 0:01:46]} 20. Qa2 {[%clk 0:00:58]}  Qh5 {[%clk 0:01:44]} 21. Bg7 {[%clk 0:00:34]}  Rg8 {[%clk 0:01:45]} 22. g4 {[%clk 0:00:34]}  Qxg4 {[%clk 0:01:38]} 23. Rhg1 {[%clk 0:00:31]}  Qxf3 {[%clk 0:01:38]} 24. Bxh7 {[%clk 0:00:30]}  Qe3+ {[%clk 0:01:14]} 25. Kb1 {[%clk 0:00:26]}  Bxa3 {[%clk 0:01:15]} 26. b3 {[%clk 0:00:20]}  Rxg7 {[%clk 0:01:02]} 27. Rxg7 {[%clk 0:00:20]}  Bf8 {[%clk 0:01:02]} 28. Rg8 {[%clk 0:00:21]}  Nb4 {[%clk 0:00:42]} 29. Qa5 {[%clk 0:00:21]}  Nd5 {[%clk 0:00:35]} 30. Qc5 {[%clk 0:00:17]}  Ne7 {[%clk 0:00:23]} 31. Rh8 {[%clk 0:00:17]}  e5 {[%clk 0:00:13]} 32. fxe5 {[%clk 0:00:14]}  fxe5 {[%clk 0:00:14]} 33. Qd6 {[%clk 0:00:10]}  Rxb3+ {[%clk 0:00:10]} 34. cxb3 {[%clk 0:00:09]}  Qxb3+ {[%clk 0:00:11]} 35. Kc1 {[%clk 0:00:09]}  Qc3+ {[%clk 0:00:07]} 36. Bc2 {[%clk 0:00:07]}  Qa1+ {[%clk 0:00:08]} 37. Kd2 {[%clk 0:00:05]}  Qc3+ {[%clk 0:00:08]} 38. Kc1 {[%clk 0:00:05]}  Qa1+ {[%clk 0:00:08]} 39. Kd2 {[%clk 0:00:05]}  Qc3+ {[%clk 0:00:08]} 40. Ke2 {[%clk 0:00:05]}  Qe3+ {[%clk 0:00:03]} 41. Kf1 {[%clk 0:00:04]}  Bh3+ {[%clk 0:00:03]} 42. Rxh3 {[%clk 0:00:05]}  Qxh3+ {[%clk 0:00:04]} 43. Kg1 {[%clk 0:00:03]}  Qg4+ {[%clk 0:00:04]} 44. Kh1 {[%clk 0:00:03]}  Qf3+ {[%clk 0:00:04]} 45. Kg1 {[%clk 0:00:03]}  Qe3+ {[%clk 0:00:05]} 46. Kf1 {[%clk 0:00:03]}  Qf3+ {[%clk 0:00:05]} 47. Ke1 {[%clk 0:00:02]}  Qh1+ {[%clk 0:00:04]} 48. Kd2 {[%clk 0:00:02]}  Qxh2+ {[%clk 0:00:05]} 49. Kc1 {[%clk 0:00:03]}  Qf4+ {[%clk 0:00:06]} 50. Kb1 {[%clk 0:00:03]}  Qg4 {[%clk 0:00:02]} 51. Ba4+ {[%clk 0:00:03]}  Nc6 {[%clk 0:00:02]} 52. Bxc6+ {[%clk 0:00:04]} 1-0


[Site "https://www.chess.com"]

[Event "Titled Tuesday Blitz August 02 Early 2022"]
[White "Harmon-Vellotti, Luke"]
[Black "Ambartsumova, Karina"]
[WhiteFideId "2030012"]
[BlackFideId "4166299"]
[WhiteElo "2354"]
[BlackElo "2262"]
[Result "1-0"]
[Round "02"]
[TimeControl "180+1"]
[Date "2022.08.02"]
[WhiteClock "0:00:23"]
[BlackClock "0:00:07"]

1. e4 {[%clk 0:03:00]}  c5 {[%clk 0:02:57]} 2. Nf3 {[%clk 0:03:01]}  e6 {[%clk 0:02:57]} 3. d4 {[%clk 0:03:01]}  cxd4 {[%clk 0:02:58]} 4. Nxd4 {[%clk 0:03:02]}  a6 {[%clk 0:02:58]} 5. Bd3 {[%clk 0:03:02]}  Bc5 {[%clk 0:02:57]} 6. Nb3 {[%clk 0:03:02]}  Ba7 {[%clk 0:02:57]} 7. Nc3 {[%clk 0:02:58]}  Nc6 {[%clk 0:02:55]} 8. Qe2 {[%clk 0:02:58]}  Nge7 {[%clk 0:02:53]} 9. Be3 {[%clk 0:02:57]}  Bxe3 {[%clk 0:02:53]} 10. Qxe3 {[%clk 0:02:58]}  O-O {[%clk 0:02:53]} 11. O-O-O {[%clk 0:02:58]}  b5 {[%clk 0:02:53]} 12. f4 {[%clk 0:02:58]}  b4 {[%clk 0:02:39]} 13. Ne2 {[%clk 0:02:57]}  d5 {[%clk 0:02:30]} 14. g4 {[%clk 0:02:21]}  a5 {[%clk 0:02:14]} 15. exd5 {[%clk 0:02:08]}  Nxd5 {[%clk 0:01:47]} 16. Qh3 {[%clk 0:02:01]}  g6 {[%clk 0:01:33]} 17. Be4 {[%clk 0:01:54]}  a4 {[%clk 0:01:26]} 18. Nbd4 {[%clk 0:01:53]}  Nxd4 {[%clk 0:01:26]} 19. Rxd4 {[%clk 0:01:54]}  Qf6 {[%clk 0:01:17]} 20. g5 {[%clk 0:01:36]}  Qg7 {[%clk 0:01:15]} 21. Qf3 {[%clk 0:01:34]}  Bb7 {[%clk 0:01:11]} 22. h4 {[%clk 0:01:29]}  a3 {[%clk 0:00:58]} 23. Rhd1 {[%clk 0:00:44]}  axb2+ {[%clk 0:00:46]} 24. Kb1 {[%clk 0:00:39]}  Rfc8 {[%clk 0:00:40]} 25. Qb3 {[%clk 0:00:33]}  Ba6 {[%clk 0:00:35]} 26. Bd3 {[%clk 0:00:26]}  Bxd3 {[%clk 0:00:16]} 27. R1xd3 {[%clk 0:00:27]}  Ra3 {[%clk 0:00:12]} 28. Qxb2 {[%clk 0:00:22]}  Nc3+ {[%clk 0:00:10]} 29. Nxc3 {[%clk 0:00:21]}  bxc3 {[%clk 0:00:10]} 30. Qxa3 {[%clk 0:00:21]}  Rb8+ {[%clk 0:00:06]} 31. Kc1 {[%clk 0:00:20]}  h5 {[%clk 0:00:06]} 32. Rd8+ {[%clk 0:00:20]}  Rxd8 {[%clk 0:00:06]} 33. Rxd8+ {[%clk 0:00:21]}  Kh7 {[%clk 0:00:07]} 34. Qf8 {[%clk 0:00:22]}  e5 {[%clk 0:00:06]} 35. Qxg7+ {[%clk 0:00:22]}  Kxg7 {[%clk 0:00:07]} 36. fxe5 {[%clk 0:00:23]} 1-0


[Site "https://www.chess.com"]

[Event "Titled Tuesday Blitz August 02 Early 2022"]
[White "Horobetz, Graham"]
[Black "Abdrlauf, Elham"]
[WhiteFideId "2047322"]
[BlackFideId "1533533"]
[WhiteElo "2593"]
[BlackElo "2429"]
[Result "1-0"]
[Round "02"]
[TimeControl "180+1"]
[Date "2022.08.02"]
[WhiteClock "0:00:14"]
[BlackClock "0:00:10"]

1. e4 {[%clk 0:03:00]}  c6 {[%clk 0:02:59]} 2. d4 {[%clk 0:03:00]}  d5 {[%clk 0:02:59]} 3. Nc3 {[%clk 0:03:01]}  dxe4 {[%clk 0:03:00]} 4. Nxe4 {[%clk 0:03:02]}  Nf6 {[%clk 0:03:01]} 5. Nxf6+ {[%clk 0:03:02]}  exf6 {[%clk 0:03:02]} 6. c3 {[%clk 0:03:02]}  Bd6 {[%clk 0:03:03]} 7. Bd3 {[%clk 0:03:03]}  O-O {[%clk 0:03:04]} 8. Qc2 {[%clk 0:03:03]}  Re8+ {[%clk 0:03:05]} 9. Ne2 {[%clk 0:03:04]}  h5 {[%clk 0:03:05]} 10. O-O {[%clk 0:03:04]}  h4 {[%clk 0:03:06]} 11. Bf4 {[%clk 0:03:04]}  Na6 {[%clk 0:03:06]} 12. Rfe1 {[%clk 0:03:00]}  Nc7 {[%clk 0:03:07]} 13. Qd2 {[%clk 0:02:39]}  Be6 {[%clk 0:03:06]} 14. Bxd6 {[%clk 0:02:36]}  Qxd6 {[%clk 0:03:07]} 15. Nf4 {[%clk 0:02:31]}  Rad8 {[%clk 0:03:05]} 16. b4 {[%clk 0:02:14]}  b5 {[%clk 0:02:44]} 17. a4 {[%clk 0:02:11]}  a6 {[%clk 0:02:43]} 18. axb5 {[%clk 0:02:09]}  cxb5 {[%clk 0:02:40]} 19. Be4 {[%clk 0:02:09]}  Bc4 {[%clk 0:02:28]} 20. Bf3 {[%clk 0:02:02]}  g6 {[%clk 0:02:22]} 21. g3 {[%clk 0:01:58]}  hxg3 {[%clk 0:02:19]} 22. hxg3 {[%clk 0:01:59]}  Kg7 {[%clk 0:02:06]} 23. Kg2 {[%clk 0:01:58]}  Nd5 {[%clk 0:01:48]} 24. Nxd5 {[%clk 0:01:47]}  Bxd5 {[%clk 0:01:48]} 25. Qd3 {[%clk 0:01:36]}  Rh8 {[%clk 0:01:33]} 26. Rh1 {[%clk 0:01:32]}  Rc8 {[%clk 0:01:33]} 27. Rxh8 {[%clk 0:01:31]}  Rxh8 {[%clk 0:01:30]} 28. Re1 {[%clk 0:01:25]}  Qc6 {[%clk 0:01:20]} 29. Re3 {[%clk 0:01:10]}  f5 {[%clk 0:01:02]} 30. Qe2 {[%clk 0:01:04]}  Rc8 {[%clk 0:00:30]} 31. Bxd5 {[%clk 0:00:58]}  Qxd5+ {[%clk 0:00:31]} 32. Qf3 {[%clk 0:00:59]}  Qxf3+ {[%clk 0:00:28]} 33. Kxf3 {[%clk 0:01:00]}  Kf6 {[%clk 0:00:29]} 34. Ke2 {[%clk 0:00:59]}  g5 {[%clk 0:00:29]} 35. Kd3 {[%clk 0:00:58]}  Rh8 {[%clk 0:00:18]} 36. d5 {[%clk 0:00:54]}  Rh1 {[%clk 0:00:18]} 37. Kd4 {[%clk 0:00:54]}  Rd1+ {[%clk 0:00:13]} 38. Kc5 {[%clk 0:00:54]}  f4 {[%clk 0:00:08]} 39. gxf4 {[%clk 0:00:54]}  gxf4 {[%clk 0:00:08]} 40. Re4 {[%clk 0:00:54]}  Rd3 {[%clk 0:00:02]} 41. d6 {[%clk 0:00:20]}  Rxc3+ {[%clk 0:00:01]} 42. Kb6 {[%clk 0:00:20]}  Rd3 {[%clk 0:00:02]} 43. Kc7 {[%clk 0:00:21]}  Rc3+ {[%clk 0:00:02]} 44. Kd8 {[%clk 0:00:16]}  Rc4 {[%clk 0:00:02]} 45. Rxc4 {[%clk 0:00:09]}  bxc4 {[%clk 0:00:03]} 46. d7 {[%clk 0:00:10]}  c3 {[%clk 0:00:03]} 47. Ke8 {[%clk 0:00:11]}  c2 {[%clk 0:00:04]} 48. d8=Q+ {[%clk 0:00:11]}  Ke5 {[%clk 0:00:05]} 49. Qc7+ {[%clk 0:00:11]}  Ke4 {[%clk 0:00:05]} 50. Qxc2+ {[%clk 0:00:12]}  Kf3 {[%clk 0:00:06]} 51. Qf5 {[%clk 0:00:12]}  f6 {[%clk 0:00:05]} 52. Qxf6 {[%clk 0:00:11]}  Ke4 {[%clk 0:00:05]} 53. Qxa6 {[%clk 0:00:10]}  Kf3 {[%clk 0:00:06]} 54. Qf6 {[%clk 0:00:10]}  Kg4 {[%clk 0:00:05]} 55. b5 {[%clk 0:00:10]}  f3 {[%clk 0:00:06]} 56. Qxf3+ {[%clk 0:00:10]}  Kxf3 {[%clk 0:00:06]} 57. b6 {[%clk 0:00:11]}  Ke2 {[%clk 0:00:07]} 58. b7 {[%clk 0:00:11]}  Kf3 {[%clk 0:00:07]} 59. b8=Q {[%clk 0:00:12]}  Kg2 {[%clk 0:00:08]} 60. Qe5 {[%clk 0:00:13]}  Kf3 {[%clk 0:00:09]} 61. Qe3+ {[%clk 0:00:12]}  Kg2 {[%clk 0:00:09]} 62. f4 {[%clk 0:00:12]}  Kh1 {[%clk 0:00:09]} 63. f5 {[%clk 0:00:13]}  Kh2 {[%clk 0:00:10]} 64. f6 {[%clk 0:00:14]} 1-0


[Site "https://www.chess.com"]

[Event "Titled Tuesday Blitz August 02 Early 2022"]
[White "Hosseinzadeh, Nima"]
[Black "Hafiz, Arif Abdul"]
[WhiteFideId "12505323"]
[BlackFideId "7104227"]
[WhiteElo "2066"]
[BlackElo "2198"]
[Result "1/2-1/2"]
[Round "02"]
[TimeControl "180+1"]
[Date "2022.08.02"]
[WhiteClock "0:00:09"]
[BlackClock "0:00:22"]

1. e4 {[%clk 0:02:52]}  Nc6 {[%clk 0:02:57]} 2. d4 {[%clk 0:02:51]}  d5 {[%clk 0:02:57]} 3. e5 {[%clk 0:02:51]}  Bf5 {[%clk 0:02:57]} 4. c3 {[%clk 0:02:52]}  e6 {[%clk 0:02:57]} 5. Bd3 {[%clk 0:02:52]}  Bxd3 {[%clk 0:02:57]} 6. Qxd3 {[%clk 0:02:53]}  f6 {[%clk 0:02:57]} 7. exf6 {[%clk 0:02:49]}  gxf6 {[%clk 0:02:51]} 8. Nf3 {[%clk 0:02:50]}  Qd7 {[%clk 0:02:49]} 9. O-O {[%clk 0:02:51]}  O-O-O {[%clk 0:02:48]} 10. b4 {[%clk 0:02:51]}  Bd6 {[%clk 0:02:46]} 11. b5 {[%clk 0:02:50]}  Na5 {[%clk 0:02:46]} 12. Re1 {[%clk 0:02:50]}  Ne7 {[%clk 0:02:40]} 13. Nbd2 {[%clk 0:02:49]}  Ng6 {[%clk 0:02:40]} 14. g3 {[%clk 0:02:47]}  Rhe8 {[%clk 0:02:19]} 15. c4 {[%clk 0:02:23]}  Nxc4 {[%clk 0:02:07]} 16. Nxc4 {[%clk 0:02:24]}  dxc4 {[%clk 0:02:08]} 17. Qxc4 {[%clk 0:02:24]}  e5 {[%clk 0:02:04]} 18. dxe5 {[%clk 0:01:55]}  Nxe5 {[%clk 0:01:46]} 19. Nxe5 {[%clk 0:01:54]}  Bxe5 {[%clk 0:01:46]} 20. Rb1 {[%clk 0:01:55]}  Qd3 {[%clk 0:01:40]} 21. Qxd3 {[%clk 0:01:31]}  Rxd3 {[%clk 0:01:40]} 22. Bf4 {[%clk 0:01:22]}  Kd7 {[%clk 0:01:26]} 23. Re4 {[%clk 0:01:16]}  Bd4 {[%clk 0:01:03]} 24. Rxe8 {[%clk 0:00:38]}  Kxe8 {[%clk 0:01:03]} 25. a4 {[%clk 0:00:35]}  Kd7 {[%clk 0:00:57]} 26. Rc1 {[%clk 0:00:28]}  c5 {[%clk 0:00:56]} 27. bxc6+ {[%clk 0:00:21]}  bxc6 {[%clk 0:00:57]} 28. Rb1 {[%clk 0:00:20]}  Ke6 {[%clk 0:00:38]} 29. Kg2 {[%clk 0:00:16]}  c5 {[%clk 0:00:37]} 30. Rb7 {[%clk 0:00:09]}  c4 {[%clk 0:00:37]} 31. Rc7 {[%clk 0:00:09]}  c3 {[%clk 0:00:37]} 32. Be3 {[%clk 0:00:07]}  Bxe3 {[%clk 0:00:27]} 33. fxe3 {[%clk 0:00:08]}  Rxe3 {[%clk 0:00:22]} 34. Kf2 {[%clk 0:00:02]}  Rd3 {[%clk 0:00:22]} 35. Ke2 {[%clk 0:00:03]}  Rd2+ {[%clk 0:00:21]} 36. Ke3 {[%clk 0:00:03]}  Rxh2 {[%clk 0:00:20]} 37. Rxc3 {[%clk 0:00:04]}  Ra2 {[%clk 0:00:20]} 38. Rc6+ {[%clk 0:00:03]}  Ke5 {[%clk 0:00:19]} 39. Rc5+ {[%clk 0:00:04]}  Ke6 {[%clk 0:00:17]} 40. Ra5 {[%clk 0:00:05]}  h5 {[%clk 0:00:16]} 41. Rxa7 {[%clk 0:00:04]}  Kf5 {[%clk 0:00:17]} 42. Kf3 {[%clk 0:00:04]}  Ra3+ {[%clk 0:00:16]} 43. Kg2 {[%clk 0:00:03]}  Kg4 {[%clk 0:00:17]} 44. Rg7+ {[%clk 0:00:04]}  Kf5 {[%clk 0:00:18]} 45. Ra7 {[%clk 0:00:05]}  Kg6 {[%clk 0:00:18]} 46. Ra5 {[%clk 0:00:05]}  f5 {[%clk 0:00:18]} 47. Ra6+ {[%clk 0:00:03]}  Kg5 {[%clk 0:00:18]} 48. Ra8 {[%clk 0:00:03]}  Kf6 {[%clk 0:00:17]} 49. Rf8+ {[%clk 0:00:03]}  Kg6 {[%clk 0:00:17]} 50. Ra8 {[%clk 0:00:03]}  Kg5 {[%clk 0:00:17]} 51. Ra6 {[%clk 0:00:04]}  h4 {[%clk 0:00:15]} 52. gxh4+ {[%clk 0:00:03]}  Kxh4 {[%clk 0:00:16]} 53. Kf2 {[%clk 0:00:03]}  Kg4 {[%clk 0:00:16]} 54. Re6 {[%clk 0:00:03]}  Rxa4 {[%clk 0:00:15]} 55. Re2 {[%clk 0:00:03]}  Ra3 {[%clk 0:00:16]} 56. Rb2 {[%clk 0:00:03]}  Rf3+ {[%clk 0:00:16]} 57. Kg2 {[%clk 0:00:03]}  Rg3+ {[%clk 0:00:17]} 58. Kf2 {[%clk 0:00:03]}  f4 {[%clk 0:00:17]} 59. Rb8 {[%clk 0:00:02]}  Rf3+ {[%clk 0:00:17]} 60. Kg2 {[%clk 0:00:02]}  Rg3+ {[%clk 0:00:18]} 61. Kf2 {[%clk 0:00:02]}  Rh3 {[%clk 0:00:17]} 62. Rg8+ {[%clk 0:00:02]}  Kf5 {[%clk 0:00:17]} 63. Rf8+ {[%clk 0:00:03]}  Ke4 {[%clk 0:00:18]} 64. Re8+ {[%clk 0:00:04]}  Kd5 {[%clk 0:00:18]} 65. Rd8+ {[%clk 0:00:04]}  Ke5 {[%clk 0:00:19]} 66. Re8+ {[%clk 0:00:04]}  Kf5 {[%clk 0:00:20]} 67. Rf8+ {[%clk 0:00:05]}  Kg5 {[%clk 0:00:20]} 68. Rg8+ {[%clk 0:00:05]}  Kf6 {[%clk 0:00:20]} 69. Rf8+ {[%clk 0:00:06]}  Ke5 {[%clk 0:00:21]} 70. Re8+ {[%clk 0:00:07]}  Kd4 {[%clk 0:00:22]} 71. Rd8+ {[%clk 0:00:07]}  Kc3 {[%clk 0:00:21]} 72. Rc8+ {[%clk 0:00:08]}  Kd3 {[%clk 0:00:22]} 73. Rd8+ {[%clk 0:00:08]}  Ke4 {[%clk 0:00:22]} 74. Re8+ {[%clk 0:00:08]}  Kf5 {[%clk 0:00:22]} 75. Rf8+ {[%clk 0:00:09]} 1/2-1/2


[Site "https://www.chess.com"]

[Event "Titled Tuesday Blitz August 02 Early 2022"]
[White "Jubin Jimmy"]
[Black "Perera Alfonso, Rene Humberto"]
[WhiteFideId "46686614"]
[BlackFideId "3514722"]
[WhiteElo "2219"]
[BlackElo "2313"]
[Result "1-0"]
[Round "02"]
[TimeControl "180+1"]
[Date "2022.08.02"]
[WhiteClock "0:00:42"]
[BlackClock "0:00:13"]

1. d4 {[%clk 0:03:00]}  d5 {[%clk 0:02:59]} 2. c4 {[%clk 0:03:01]}  c6 {[%clk 0:02:58]} 3. Nc3 {[%clk 0:03:01]}  Nf6 {[%clk 0:02:58]} 4. Nf3 {[%clk 0:03:01]}  dxc4 {[%clk 0:02:58]} 5. a4 {[%clk 0:03:00]}  Bf5 {[%clk 0:02:58]} 6. Ne5 {[%clk 0:03:01]}  Na6 {[%clk 0:02:57]} 7. f3 {[%clk 0:02:57]}  Nd7 {[%clk 0:02:57]} 8. Nxc4 {[%clk 0:02:54]}  e5 {[%clk 0:02:56]} 9. dxe5 {[%clk 0:02:50]}  Qh4+ {[%clk 0:02:55]} 10. g3 {[%clk 0:02:47]}  Qxc4 {[%clk 0:02:55]} 11. e4 {[%clk 0:02:48]}  Qe6 {[%clk 0:02:56]} 12. exf5 {[%clk 0:02:48]}  Qxe5+ {[%clk 0:02:55]} 13. Be2 {[%clk 0:02:45]}  Bc5 {[%clk 0:02:51]} 14. Bf4 {[%clk 0:02:38]}  Qxf5 {[%clk 0:02:37]} 15. Bxa6 {[%clk 0:02:29]}  bxa6 {[%clk 0:02:33]} 16. Qe2+ {[%clk 0:02:30]}  Qe6 {[%clk 0:02:18]} 17. Qxe6+ {[%clk 0:02:30]}  fxe6 {[%clk 0:02:19]} 18. O-O-O {[%clk 0:02:30]}  e5 {[%clk 0:02:17]} 19. Rhe1 {[%clk 0:02:29]}  O-O-O {[%clk 0:02:10]} 20. Bxe5 {[%clk 0:02:15]}  Nxe5 {[%clk 0:01:56]} 21. Rxe5 {[%clk 0:02:16]}  Rxd1+ {[%clk 0:01:56]} 22. Kxd1 {[%clk 0:02:16]}  Rd8+ {[%clk 0:01:52]} 23. Kc2 {[%clk 0:02:16]}  Bd6 {[%clk 0:01:49]} 24. Re4 {[%clk 0:02:09]}  a5 {[%clk 0:01:47]} 25. f4 {[%clk 0:02:08]}  Kc7 {[%clk 0:01:46]} 26. Rd4 {[%clk 0:02:05]}  Re8 {[%clk 0:01:42]} 27. Ne4 {[%clk 0:01:50]}  Bb4 {[%clk 0:01:42]} 28. b3 {[%clk 0:01:27]}  h6 {[%clk 0:01:32]} 29. Kd3 {[%clk 0:01:25]}  Re6 {[%clk 0:01:23]} 30. h3 {[%clk 0:01:18]}  Re7 {[%clk 0:01:19]} 31. g4 {[%clk 0:01:16]}  Rf7 {[%clk 0:01:07]} 32. Ng3 {[%clk 0:01:10]}  c5 {[%clk 0:01:01]} 33. Re4 {[%clk 0:01:07]}  Rd7+ {[%clk 0:01:01]} 34. Kc4 {[%clk 0:01:07]}  a6 {[%clk 0:00:51]} 35. Nf5 {[%clk 0:01:05]}  Rf7 {[%clk 0:00:32]} 36. Re7+ {[%clk 0:00:59]}  Rxe7 {[%clk 0:00:32]} 37. Nxe7 {[%clk 0:01:00]}  Bd2 {[%clk 0:00:29]} 38. f5 {[%clk 0:00:54]}  Kd6 {[%clk 0:00:26]} 39. Nd5 {[%clk 0:00:51]}  Bg5 {[%clk 0:00:22]} 40. Nc3 {[%clk 0:00:51]}  Be3 {[%clk 0:00:18]} 41. Ne4+ {[%clk 0:00:50]}  Kc6 {[%clk 0:00:19]} 42. h4 {[%clk 0:00:45]}  Bd4 {[%clk 0:00:17]} 43. g5 {[%clk 0:00:45]}  hxg5 {[%clk 0:00:17]} 44. hxg5 {[%clk 0:00:43]}  Be3 {[%clk 0:00:15]} 45. f6 {[%clk 0:00:42]}  gxf6 {[%clk 0:00:16]} 46. g6 {[%clk 0:00:42]}  Bh6 {[%clk 0:00:16]} 47. Nxf6 {[%clk 0:00:43]}  Kd6 {[%clk 0:00:14]} 48. g7 {[%clk 0:00:42]}  Bxg7 {[%clk 0:00:13]} 49. Ne8+ {[%clk 0:00:42]} 1-0


[Site "https://www.chess.com"]

[Event "Titled Tuesday Blitz August 02 Early 2022"]
[White "Karaev, Seit-Amet"]
[Black "Chigaev, Maksim"]
[WhiteFideId "4169549"]
[BlackFideId "4108116"]
[WhiteElo "2272"]
[BlackElo "2438"]
[Result "0-1"]
[Round "02"]
[TimeControl "180+1"]
[Date "2022.08.02"]
[WhiteClock "0:00:44"]
[BlackClock "0:01:05"]

1. e4 {[%clk 0:02:59]}  c5 {[%clk 0:03:00]} 2. Nf3 {[%clk 0:02:58]}  g6 {[%clk 0:03:00]} 3. d4 {[%clk 0:02:58]}  cxd4 {[%clk 0:03:00]} 4. Nxd4 {[%clk 0:02:59]}  Bg7 {[%clk 0:03:00]} 5. Nc3 {[%clk 0:02:59]}  Nc6 {[%clk 0:03:00]} 6. Be3 {[%clk 0:02:59]}  Nf6 {[%clk 0:03:00]} 7. f3 {[%clk 0:02:59]}  O-O {[%clk 0:02:59]} 8. Bc4 {[%clk 0:02:59]}  d5 {[%clk 0:02:41]} 9. exd5 {[%clk 0:02:54]}  Na5 {[%clk 0:02:40]} 10. Qe2 {[%clk 0:02:49]}  a6 {[%clk 0:02:23]} 11. O-O {[%clk 0:02:44]}  b5 {[%clk 0:02:22]} 12. Bb3 {[%clk 0:02:42]}  Bb7 {[%clk 0:02:22]} 13. Rad1 {[%clk 0:02:39]}  Nxb3 {[%clk 0:02:19]} 14. Nxb3 {[%clk 0:02:40]}  Nxd5 {[%clk 0:02:16]} 15. Nxd5 {[%clk 0:02:38]}  Bxd5 {[%clk 0:02:16]} 16. Bd4 {[%clk 0:02:39]}  Bc4 {[%clk 0:02:02]} 17. Qf2 {[%clk 0:02:34]}  Bxf1 {[%clk 0:02:00]} 18. Rxf1 {[%clk 0:02:04]}  Bxd4 {[%clk 0:01:57]} 19. Nxd4 {[%clk 0:02:04]}  Qb6 {[%clk 0:01:57]} 20. Re1 {[%clk 0:02:03]}  Rad8 {[%clk 0:01:51]} 21. c3 {[%clk 0:02:03]}  Rfe8 {[%clk 0:01:51]} 22. Re5 {[%clk 0:01:54]}  b4 {[%clk 0:01:50]} 23. h4 {[%clk 0:01:53]}  bxc3 {[%clk 0:01:49]} 24. bxc3 {[%clk 0:01:54]}  Rc8 {[%clk 0:01:49]} 25. Qe3 {[%clk 0:01:47]}  Qc7 {[%clk 0:01:49]} 26. Ne2 {[%clk 0:01:41]}  f6 {[%clk 0:01:36]} 27. Re6 {[%clk 0:01:33]}  Qc5 {[%clk 0:01:34]} 28. Qxc5 {[%clk 0:01:29]}  Rxc5 {[%clk 0:01:35]} 29. Rxa6 {[%clk 0:01:30]}  Kf7 {[%clk 0:01:36]} 30. Kf2 {[%clk 0:01:28]}  Rb8 {[%clk 0:01:35]} 31. f4 {[%clk 0:01:11]}  Rb2 {[%clk 0:01:34]} 32. Ke3 {[%clk 0:01:11]}  Rd5 {[%clk 0:01:20]} 33. g3 {[%clk 0:01:08]}  Rd6 {[%clk 0:01:16]} 34. Rxd6 {[%clk 0:01:06]}  exd6 {[%clk 0:01:17]} 35. a4 {[%clk 0:01:05]}  Ra2 {[%clk 0:01:16]} 36. Nd4 {[%clk 0:01:00]}  Rxa4 {[%clk 0:01:17]} 37. f5 {[%clk 0:00:59]}  d5 {[%clk 0:01:06]} 38. g4 {[%clk 0:00:57]}  Rc4 {[%clk 0:01:03]} 39. Kd3 {[%clk 0:00:56]}  gxf5 {[%clk 0:01:03]} 40. gxf5 {[%clk 0:00:57]}  h5 {[%clk 0:01:04]} 41. Kd2 {[%clk 0:00:54]}  Ke7 {[%clk 0:01:04]} 42. Kd3 {[%clk 0:00:51]}  Kd6 {[%clk 0:01:04]} 43. Kd2 {[%clk 0:00:45]}  Ke5 {[%clk 0:01:04]} 44. Kd3 {[%clk 0:00:43]}  Rxd4+ {[%clk 0:01:03]} 45. cxd4+ {[%clk 0:00:44]}  Kxf5 {[%clk 0:01:04]} 46. Kc3 {[%clk 0:00:44]}  Ke4 {[%clk 0:01:05]} 0-1


[Site "https://www.chess.com"]

[Event "Titled Tuesday Blitz August 02 Early 2022"]
[White "Makarian, Rudik"]
[Black "Bayo Milagro, Alvaro"]
[WhiteFideId "44105681"]
[BlackFideId "22275240"]
[WhiteElo "2403"]
[BlackElo "2270"]
[Result "1-0"]
[Round "02"]
[TimeControl "180+1"]
[Date "2022.08.02"]
[WhiteClock "0:01:44"]
[BlackClock "0:02:09"]

1. d3 {[%clk 0:03:00]}  Nf6 {[%clk 0:02:59]} 2. f4 {[%clk 0:02:59]}  d5 {[%clk 0:02:56]} 3. Nf3 {[%clk 0:03:00]}  g6 {[%clk 0:02:56]} 4. g3 {[%clk 0:03:00]}  Bg7 {[%clk 0:02:57]} 5. Bg2 {[%clk 0:03:01]}  O-O {[%clk 0:02:57]} 6. O-O {[%clk 0:03:02]}  c5 {[%clk 0:02:58]} 7. Ne5 {[%clk 0:03:03]}  Qc7 {[%clk 0:02:55]} 8. e4 {[%clk 0:03:01]}  dxe4 {[%clk 0:02:55]} 9. dxe4 {[%clk 0:03:02]}  Rd8 {[%clk 0:02:55]} 10. Qe2 {[%clk 0:03:02]}  Nfd7 {[%clk 0:02:53]} 11. Nxd7 {[%clk 0:03:02]}  Bxd7 {[%clk 0:02:53]} 12. Nc3 {[%clk 0:03:01]}  e6 {[%clk 0:02:46]} 13. e5 {[%clk 0:03:00]}  Bc6 {[%clk 0:02:24]} 14. Be3 {[%clk 0:02:59]}  Bxg2 {[%clk 0:02:24]} 15. Qxg2 {[%clk 0:03:00]}  Bf8 {[%clk 0:02:22]} 16. Ne4 {[%clk 0:02:59]}  Nc6 {[%clk 0:02:21]} 17. Nf6+ {[%clk 0:02:45]}  Kg7 {[%clk 0:02:21]} 18. Qh3 {[%clk 0:02:46]}  h6 {[%clk 0:02:19]} 19. f5 {[%clk 0:01:49]}  g5 {[%clk 0:02:09]} 20. Bxg5 {[%clk 0:01:44]} 1-0


[Site "https://www.chess.com"]